[Event "Titled Tuesday Blitz June 6 Late 2023"]
[White "Camilla_Lee"]
[Black "Zhurbinsky, David"]
[BlackFideId "2072904"]
[WhiteElo "2499"]
[BlackElo "2664"]
[Result "1-0"]
[Round "6"]
[TimeControl "180+2"]
[Date "2023.06.07"]
[WhiteClock "0:00:39"]
[BlackClock "0:00:01"]
[Board "58"]

1. e4 {[%clk 0:03:00]}  e5 {[%clk 0:02:54]} 2. Nf3 {[%clk 0:03:00]}  Nc6 {[%clk 0:02:54]} 3. Nc3 {[%clk 0:03:01]}  Nf6 {[%clk 0:02:54]} 4. d4 {[%clk 0:03:01]}  exd4 {[%clk 0:02:55]} 5. Nd5 {[%clk 0:03:01]}  Be7 {[%clk 0:02:50]} 6. Nxd4 {[%clk 0:03:01]}  Nxe4 {[%clk 0:02:44]} 7. Nb5 {[%clk 0:02:46]}  O-O {[%clk 0:02:17]} 8. Nbxc7 {[%clk 0:02:43]}  Bc5 {[%clk 0:02:07]} 9. Be3 {[%clk 0:02:43]}  Bxe3 {[%clk 0:02:06]} 10. fxe3 {[%clk 0:02:43]}  Qh4+ {[%clk 0:02:05]} 11. g3 {[%clk 0:02:43]}  Nxg3 {[%clk 0:01:46]} 12. hxg3 {[%clk 0:02:44]}  Qxh1 {[%clk 0:01:41]} 13. Nxa8 {[%clk 0:02:43]}  d6 {[%clk 0:01:38]} 14. Nac7 {[%clk 0:02:39]}  Bh3 {[%clk 0:01:37]} 15. Kd2 {[%clk 0:02:26]}  Be6 {[%clk 0:00:59]} 16. Bc4 {[%clk 0:01:41]}  Qe4 {[%clk 0:00:46]} 17. Qe2 {[%clk 0:01:26]}  Ne5 {[%clk 0:00:29]} 18. Bb3 {[%clk 0:01:19]}  Bg4 {[%clk 0:00:25]} 19. Qf2 {[%clk 0:01:11]}  Nf3+ {[%clk 0:00:21]} 20. Kc1 {[%clk 0:01:11]}  Bf5 {[%clk 0:00:18]} 21. Nc3 {[%clk 0:00:57]}  Qg4 {[%clk 0:00:12]} 22. a4 {[%clk 0:00:53]}  Ne5 {[%clk 0:00:08]} 23. Kb1 {[%clk 0:00:44]}  Kh8 {[%clk 0:00:05]} 24. N7d5 {[%clk 0:00:42]}  Bg6 {[%clk 0:00:02]} 25. Ka2 {[%clk 0:00:42]}  Rc8 {[%clk 0:00:01]} 26. Qf4 {[%clk 0:00:39]} 1-0


[Site "https://www.chess.com"]

[Event "Titled Tuesday Blitz June 6 Late 2023"]
[White "Petesch, Gabriel"]
[Black "Veiga, Jose Francisco R P Neves"]
[WhiteFideId "2032465"]
[BlackFideId "1930087"]
[WhiteElo "2374"]
[BlackElo "2319"]
[Result "0-1"]
[Round "6"]
[TimeControl "180+2"]
[Date "2023.06.07"]
[WhiteClock "0:00:04"]
[BlackClock "0:00:23"]
[Board "59"]

1. e3 {[%clk 0:02:43]}  e5 {[%clk 0:02:58]} 2. d4 {[%clk 0:02:43]}  exd4 {[%clk 0:02:58]} 3. exd4 {[%clk 0:02:44]}  Nf6 {[%clk 0:02:58]} 4. c3 {[%clk 0:02:45]}  d5 {[%clk 0:02:58]} 5. Bd3 {[%clk 0:02:45]}  Bd6 {[%clk 0:02:58]} 6. Nf3 {[%clk 0:02:41]}  O-O {[%clk 0:02:57]} 7. O-O {[%clk 0:02:39]}  Bg4 {[%clk 0:02:58]} 8. Nbd2 {[%clk 0:02:37]}  Nbd7 {[%clk 0:02:57]} 9. Qc2 {[%clk 0:02:36]}  Re8 {[%clk 0:02:55]} 10. Bf5 {[%clk 0:02:27]}  Bxf5 {[%clk 0:02:54]} 11. Qxf5 {[%clk 0:02:27]}  Nf8 {[%clk 0:02:52]} 12. Ne5 {[%clk 0:02:15]}  Qc8 {[%clk 0:02:43]} 13. Qxc8 {[%clk 0:02:08]}  Raxc8 {[%clk 0:02:44]} 14. f4 {[%clk 0:02:05]}  N6d7 {[%clk 0:02:43]} 15. Ndf3 {[%clk 0:02:01]}  f6 {[%clk 0:02:40]} 16. Nd3 {[%clk 0:01:53]}  Re4 {[%clk 0:02:37]} 17. Bd2 {[%clk 0:01:51]}  Rce8 {[%clk 0:02:36]} 18. Rae1 {[%clk 0:01:47]}  c6 {[%clk 0:02:34]} 19. Kf2 {[%clk 0:01:46]}  Ng6 {[%clk 0:02:29]} 20. g3 {[%clk 0:01:45]}  h5 {[%clk 0:02:28]} 21. a4 {[%clk 0:01:38]}  Ne7 {[%clk 0:02:12]} 22. Nh4 {[%clk 0:01:29]}  Kf7 {[%clk 0:02:08]} 23. a5 {[%clk 0:01:28]}  c5 {[%clk 0:02:02]} 24. dxc5 {[%clk 0:01:22]}  Nxc5 {[%clk 0:02:03]} 25. Nxc5 {[%clk 0:01:23]}  Bxc5+ {[%clk 0:02:04]} 26. Kf3 {[%clk 0:01:23]}  Nc6 {[%clk 0:01:41]} 27. b4 {[%clk 0:01:15]}  Bf8 {[%clk 0:01:29]} 28. Re3 {[%clk 0:00:49]}  g5 {[%clk 0:01:16]} 29. fxg5 {[%clk 0:00:40]}  fxg5 {[%clk 0:01:16]} 30. Ke2+ {[%clk 0:00:38]}  Kg7 {[%clk 0:01:08]} 31. Nf5+ {[%clk 0:00:38]}  Kg6 {[%clk 0:01:08]} 32. h4 {[%clk 0:00:24]}  g4 {[%clk 0:01:05]} 33. Rxe4 {[%clk 0:00:19]}  Rxe4+ {[%clk 0:01:02]} 34. Kd3 {[%clk 0:00:19]}  Ne5+ {[%clk 0:01:01]} 35. Kc2 {[%clk 0:00:20]}  Nc4 {[%clk 0:00:50]} 36. Nd4 {[%clk 0:00:20]}  Bd6 {[%clk 0:00:50]} 37. Bg5 {[%clk 0:00:14]}  Be7 {[%clk 0:00:40]} 38. Bxe7 {[%clk 0:00:14]}  Ne3+ {[%clk 0:00:39]} 39. Kd3 {[%clk 0:00:13]}  Nxf1 {[%clk 0:00:40]} 40. Bd6 {[%clk 0:00:13]}  Re3+ {[%clk 0:00:39]} 41. Kc2 {[%clk 0:00:13]}  Nxg3 {[%clk 0:00:40]} 42. Bb8 {[%clk 0:00:11]}  a6 {[%clk 0:00:40]} 43. b5 {[%clk 0:00:11]}  Ne4 {[%clk 0:00:39]} 44. b6 {[%clk 0:00:10]}  Rxc3+ {[%clk 0:00:39]} 45. Kb2 {[%clk 0:00:10]}  g3 {[%clk 0:00:36]} 46. Ne2 {[%clk 0:00:10]}  g2 {[%clk 0:00:35]} 47. Nf4+ {[%clk 0:00:09]}  Kf5 {[%clk 0:00:34]} 48. Nxg2 {[%clk 0:00:10]}  Rc8 {[%clk 0:00:33]} 49. Bc7 {[%clk 0:00:10]}  Kg4 {[%clk 0:00:30]} 50. Ne3+ {[%clk 0:00:10]}  Kxh4 {[%clk 0:00:31]} 51. Nxd5 {[%clk 0:00:11]}  Kg5 {[%clk 0:00:28]} 52. Nb4 {[%clk 0:00:09]}  Nc5 {[%clk 0:00:27]} 53. Bd6 {[%clk 0:00:05]}  Nd7 {[%clk 0:00:25]} 54. Be7+ {[%clk 0:00:03]}  Kf5 {[%clk 0:00:24]} 55. Nd5 {[%clk 0:00:04]}  Ke6 {[%clk 0:00:23]} 0-1


[Site "https://www.chess.com"]

[Event "Titled Tuesday Blitz June 6 Late 2023"]
[White "Papp, Levente"]
[Black "Urbina Perez, Juan Antonio"]
[WhiteFideId "751243"]
[BlackFideId "2217368"]
[WhiteElo "2380"]
[BlackElo "2197"]
[Result "1/2-1/2"]
[Round "6"]
[TimeControl "180+2"]
[Date "2023.06.07"]
[WhiteClock "0:00:11"]
[BlackClock "0:00:16"]
[Board "61"]

1. Nf3 {[%clk 0:03:00]}  d5 {[%clk 0:02:58]} 2. b3 {[%clk 0:03:01]}  c6 {[%clk 0:02:58]} 3. Bb2 {[%clk 0:03:01]}  Bf5 {[%clk 0:02:59]} 4. g3 {[%clk 0:02:59]}  e6 {[%clk 0:02:59]} 5. Bg2 {[%clk 0:02:59]}  h6 {[%clk 0:02:59]} 6. O-O {[%clk 0:03:00]}  Nf6 {[%clk 0:03:00]} 7. d3 {[%clk 0:02:59]}  Nbd7 {[%clk 0:02:58]} 8. Nbd2 {[%clk 0:03:00]}  Bc5 {[%clk 0:02:49]} 9. e4 {[%clk 0:03:00]}  Bg6 {[%clk 0:02:48]} 10. e5 {[%clk 0:02:58]}  Ng8 {[%clk 0:02:44]} 11. d4 {[%clk 0:02:51]}  Bb6 {[%clk 0:02:42]} 12. c4 {[%clk 0:02:52]}  Ne7 {[%clk 0:02:40]} 13. Nh4 {[%clk 0:02:33]}  O-O {[%clk 0:02:38]} 14. c5 {[%clk 0:02:17]}  Bc7 {[%clk 0:02:36]} 15. Nxg6 {[%clk 0:02:18]}  Nxg6 {[%clk 0:02:35]} 16. f4 {[%clk 0:02:18]}  b6 {[%clk 0:02:31]} 17. b4 {[%clk 0:02:14]}  a5 {[%clk 0:02:29]} 18. a3 {[%clk 0:02:14]}  axb4 {[%clk 0:02:29]} 19. axb4 {[%clk 0:02:15]}  bxc5 {[%clk 0:02:29]} 20. bxc5 {[%clk 0:02:15]}  Rxa1 {[%clk 0:02:26]} 21. Qxa1 {[%clk 0:02:16]}  Qa8 {[%clk 0:02:21]} 22. Bc3 {[%clk 0:02:02]}  Ne7 {[%clk 0:02:15]} 23. Bh3 {[%clk 0:01:59]}  g6 {[%clk 0:02:13]} 24. Rb1 {[%clk 0:01:51]}  Qxa1 {[%clk 0:01:22]} 25. Rxa1 {[%clk 0:01:52]}  Rc8 {[%clk 0:01:21]} 26. Ra7 {[%clk 0:01:50]}  Kf8 {[%clk 0:01:21]} 27. Bf1 {[%clk 0:01:47]}  Nb8 {[%clk 0:01:15]} 28. Nb3 {[%clk 0:01:38]}  Ke8 {[%clk 0:01:13]} 29. Ba5 {[%clk 0:01:33]}  Bxa5 {[%clk 0:01:06]} 30. Nxa5 {[%clk 0:01:32]}  Nf5 {[%clk 0:01:06]} 31. Nb7 {[%clk 0:01:09]}  Nd7 {[%clk 0:00:44]} 32. g4 {[%clk 0:01:07]}  Nxd4 {[%clk 0:00:39]} 33. Nd6+ {[%clk 0:01:07]}  Kd8 {[%clk 0:00:39]} 34. Nxc8 {[%clk 0:00:54]}  Kxc8 {[%clk 0:00:40]} 35. Ra8+ {[%clk 0:00:48]}  Kc7 {[%clk 0:00:40]} 36. Rh8 {[%clk 0:00:49]}  Nb3 {[%clk 0:00:35]} 37. Rxh6 {[%clk 0:00:48]}  Nbxc5 {[%clk 0:00:35]} 38. Rh7 {[%clk 0:00:47]}  d4 {[%clk 0:00:33]} 39. h4 {[%clk 0:00:44]}  d3 {[%clk 0:00:33]} 40. h5 {[%clk 0:00:42]}  gxh5 {[%clk 0:00:31]} 41. gxh5 {[%clk 0:00:43]}  d2 {[%clk 0:00:28]} 42. Be2 {[%clk 0:00:43]}  Nd3 {[%clk 0:00:26]} 43. Rxf7 {[%clk 0:00:41]}  Kd8 {[%clk 0:00:26]} 44. h6 {[%clk 0:00:41]}  Ke8 {[%clk 0:00:25]} 45. Rxd7 {[%clk 0:00:40]}  Kxd7 {[%clk 0:00:25]} 46. h7 {[%clk 0:00:40]}  Nxf4 {[%clk 0:00:26]} 47. Kf2 {[%clk 0:00:19]}  Ng6 {[%clk 0:00:22]} 48. Ke3 {[%clk 0:00:18]}  Ke7 {[%clk 0:00:20]} 49. Kxd2 {[%clk 0:00:18]}  Kf8 {[%clk 0:00:18]} 50. Bd3 {[%clk 0:00:16]}  Nh8 {[%clk 0:00:17]} 51. Kc3 {[%clk 0:00:16]}  Kg7 {[%clk 0:00:18]} 52. Kd4 {[%clk 0:00:16]}  Nf7 {[%clk 0:00:18]} 53. Be4 {[%clk 0:00:12]}  c5+ {[%clk 0:00:15]} 54. Kxc5 {[%clk 0:00:12]}  Nxe5 {[%clk 0:00:15]} 55. Kd6 {[%clk 0:00:12]}  Nf7+ {[%clk 0:00:15]} 56. Kxe6 {[%clk 0:00:12]}  Ng5+ {[%clk 0:00:16]} 57. Ke7 {[%clk 0:00:11]}  Nxh7 {[%clk 0:00:16]} 1/2-1/2


[Site "https://www.chess.com"]

[Event "Titled Tuesday Blitz June 6 Late 2023"]
[White "Roienko, Artur"]
[Black "Skatchkov, Pavel"]
[WhiteFideId "14136732"]
[BlackFideId "4121848"]
[WhiteElo "2062"]
[BlackElo "2476"]
[Result "0-1"]
[Round "6"]
[TimeControl "180+2"]
[Date "2023.06.07"]
[WhiteClock "0:00:21"]
[BlackClock "0:01:40"]
[Board "64"]

1. e4 {[%clk 0:02:49]}  e5 {[%clk 0:02:57]} 2. Nf3 {[%clk 0:02:49]}  d5 {[%clk 0:02:57]} 3. exd5 {[%clk 0:02:42]}  e4 {[%clk 0:02:58]} 4. Ne5 {[%clk 0:02:40]}  Qxd5 {[%clk 0:02:57]} 5. d4 {[%clk 0:02:41]}  exd3 {[%clk 0:02:58]} 6. Nxd3 {[%clk 0:02:35]}  Nf6 {[%clk 0:02:56]} 7. Nc3 {[%clk 0:02:35]}  Qf5 {[%clk 0:02:56]} 8. Bf4 {[%clk 0:02:29]}  Na6 {[%clk 0:02:31]} 9. Qd2 {[%clk 0:02:22]}  Be6 {[%clk 0:02:28]} 10. O-O-O {[%clk 0:02:20]}  O-O-O {[%clk 0:02:28]} 11. f3 {[%clk 0:02:17]}  Nb4 {[%clk 0:02:26]} 12. a3 {[%clk 0:02:08]}  Qa5 {[%clk 0:02:18]} 13. Kb1 {[%clk 0:01:31]}  Nxd3 {[%clk 0:02:13]} 14. Bxd3 {[%clk 0:01:30]}  Bxa3 {[%clk 0:02:12]} 15. bxa3 {[%clk 0:01:30]}  Qxa3 {[%clk 0:02:13]} 16. Rhe1 {[%clk 0:01:10]}  Rd4 {[%clk 0:02:11]} 17. Nd5 {[%clk 0:00:25]}  Nxd5 {[%clk 0:02:05]} 18. Re4 {[%clk 0:00:22]}  Nc3+ {[%clk 0:01:44]} 19. Qxc3 {[%clk 0:00:21]}  Qxc3 {[%clk 0:01:40]} 0-1


[Site "https://www.chess.com"]

[Event "Titled Tuesday Blitz June 6 Late 2023"]
[White "Garcia Cuenca, Victor"]
[Black "Goryachkina, Aleksandra"]
[WhiteFideId "2250829"]
[BlackFideId "4147103"]
[WhiteElo "2329"]
[BlackElo "2471"]
[Result "1-0"]
[Round "6"]
[TimeControl "180+2"]
[Date "2023.06.07"]
[WhiteClock "0:00:04"]
[BlackClock "0:00:01"]
[Board "65"]

1. d4 {[%clk 0:03:00]}  Nf6 {[%clk 0:02:59]} 2. Nf3 {[%clk 0:03:00]}  d5 {[%clk 0:02:59]} 3. Bf4 {[%clk 0:02:59]}  c5 {[%clk 0:02:55]} 4. e3 {[%clk 0:02:58]}  Nc6 {[%clk 0:02:41]} 5. Nbd2 {[%clk 0:02:57]}  Bg4 {[%clk 0:02:31]} 6. c3 {[%clk 0:02:57]}  e6 {[%clk 0:02:31]} 7. Qa4 {[%clk 0:02:48]}  Bxf3 {[%clk 0:02:22]} 8. Nxf3 {[%clk 0:02:48]}  Bd6 {[%clk 0:02:18]} 9. Ba6 {[%clk 0:02:35]}  bxa6 {[%clk 0:01:19]} 10. Qxc6+ {[%clk 0:02:30]}  Ke7 {[%clk 0:01:20]} 11. Qxa6 {[%clk 0:02:09]}  Bxf4 {[%clk 0:01:18]} 12. exf4 {[%clk 0:02:09]}  c4 {[%clk 0:01:06]} 13. Ne5 {[%clk 0:01:59]}  Qc7 {[%clk 0:01:05]} 14. Qa3+ {[%clk 0:01:53]}  Ke8 {[%clk 0:01:02]} 15. O-O {[%clk 0:01:51]}  Ne4 {[%clk 0:00:58]} 16. Rfe1 {[%clk 0:01:47]}  f6 {[%clk 0:00:54]} 17. Qa4+ {[%clk 0:01:36]}  Ke7 {[%clk 0:00:54]} 18. Nxc4 {[%clk 0:01:36]}  Kf7 {[%clk 0:00:39]} 19. f5 {[%clk 0:01:10]}  exf5 {[%clk 0:00:27]} 20. Ne3 {[%clk 0:01:10]}  Rhd8 {[%clk 0:00:25]} 21. f3 {[%clk 0:00:59]}  Ng5 {[%clk 0:00:11]} 22. Nxf5 {[%clk 0:00:57]}  Ne6 {[%clk 0:00:10]} 23. g3 {[%clk 0:00:28]}  Rab8 {[%clk 0:00:08]} 24. Re2 {[%clk 0:00:26]}  Rb6 {[%clk 0:00:06]} 25. Rae1 {[%clk 0:00:25]}  Rdb8 {[%clk 0:00:05]} 26. Qa3 {[%clk 0:00:20]}  g6 {[%clk 0:00:03]} 27. Nh6+ {[%clk 0:00:17]}  Kg7 {[%clk 0:00:03]} 28. Ng4 {[%clk 0:00:18]}  Kf7 {[%clk 0:00:02]} 29. Nh6+ {[%clk 0:00:15]}  Kg7 {[%clk 0:00:03]} 30. Rxe6 {[%clk 0:00:11]}  Rxe6 {[%clk 0:00:04]} 31. Rxe6 {[%clk 0:00:10]}  Kxh6 {[%clk 0:00:04]} 32. Re7 {[%clk 0:00:06]}  Qb6 {[%clk 0:00:05]} 33. Qxa7 {[%clk 0:00:05]}  Qxb2 {[%clk 0:00:02]} 34. Rxh7+ {[%clk 0:00:03]}  Kg5 {[%clk 0:00:02]} 35. h4+ {[%clk 0:00:03]}  Kf5 {[%clk 0:00:01]} 36. Qd7# {[%clk 0:00:04]} 1-0


[Site "https://www.chess.com"]

[Event "Titled Tuesday Blitz June 6 Late 2023"]
[White "Abrahamyan, Tatev"]
[Black "Prieto Aranguren, Alain"]
[WhiteFideId "13301918"]
[BlackFideId "2268906"]
[WhiteElo "2342"]
[BlackElo "2209"]
[Result "1-0"]
[Round "6"]
[TimeControl "180+2"]
[Date "2023.06.07"]
[WhiteClock "0:00:22"]
[BlackClock "0:00:14"]
[Board "66"]

1. e4 {[%clk 0:03:00]}  c6 {[%clk 0:02:34]} 2. d4 {[%clk 0:02:57]}  d5 {[%clk 0:02:32]} 3. Nc3 {[%clk 0:02:57]}  b5 {[%clk 0:02:30]} 4. a3 {[%clk 0:02:56]}  a6 {[%clk 0:02:31]} 5. Nf3 {[%clk 0:02:54]}  Bg4 {[%clk 0:02:30]} 6. Be2 {[%clk 0:02:36]}  e6 {[%clk 0:02:23]} 7. Ne5 {[%clk 0:02:24]}  Bxe2 {[%clk 0:02:22]} 8. Qxe2 {[%clk 0:02:23]}  Nf6 {[%clk 0:02:21]} 9. Bg5 {[%clk 0:02:10]}  Be7 {[%clk 0:02:16]} 10. Bxf6 {[%clk 0:01:48]}  gxf6 {[%clk 0:02:06]} 11. Nf3 {[%clk 0:01:47]}  dxe4 {[%clk 0:02:00]} 12. Nxe4 {[%clk 0:01:45]}  Nd7 {[%clk 0:01:57]} 13. Ng3 {[%clk 0:01:39]}  Qc7 {[%clk 0:01:50]} 14. a4 {[%clk 0:01:34]}  b4 {[%clk 0:01:48]} 15. a5 {[%clk 0:01:33]}  c5 {[%clk 0:01:46]} 16. O-O {[%clk 0:01:31]}  cxd4 {[%clk 0:01:43]} 17. Nxd4 {[%clk 0:01:29]}  Nc5 {[%clk 0:01:31]} 18. Nh5 {[%clk 0:01:20]}  Rd8 {[%clk 0:01:09]} 19. Rad1 {[%clk 0:01:15]}  Rd5 {[%clk 0:01:06]} 20. Nxe6 {[%clk 0:00:38]}  fxe6 {[%clk 0:00:46]} 21. Rxd5 {[%clk 0:00:37]}  exd5 {[%clk 0:00:45]} 22. Nxf6+ {[%clk 0:00:38]}  Kf7 {[%clk 0:00:39]} 23. Nxd5 {[%clk 0:00:39]}  Qd6 {[%clk 0:00:29]} 24. Re1 {[%clk 0:00:38]}  Qxd5 {[%clk 0:00:17]} 25. Qxe7+ {[%clk 0:00:38]}  Kg6 {[%clk 0:00:17]} 26. h4 {[%clk 0:00:35]}  Rd8 {[%clk 0:00:15]} 27. Re5 {[%clk 0:00:34]}  Qd1+ {[%clk 0:00:14]} 28. Kh2 {[%clk 0:00:34]}  Qd6 {[%clk 0:00:14]} 29. Qxd6+ {[%clk 0:00:23]}  Rxd6 {[%clk 0:00:14]} 30. Rxc5 {[%clk 0:00:24]}  Rd2 {[%clk 0:00:14]} 31. Rc4 {[%clk 0:00:24]}  b3 {[%clk 0:00:13]} 32. cxb3 {[%clk 0:00:23]}  Rxb2 {[%clk 0:00:14]} 33. f3 {[%clk 0:00:23]}  Rxb3 {[%clk 0:00:14]} 34. Rc6+ {[%clk 0:00:23]}  Kh5 {[%clk 0:00:14]} 35. Kh3 {[%clk 0:00:22]} 1-0


[Site "https://www.chess.com"]

[Event "Titled Tuesday Blitz June 6 Late 2023"]
[White "Mendez Fortes, Eduardo Jesus"]
[Black "MunichMouse"]
[WhiteFideId "3502376"]
[WhiteElo "2307"]
[BlackElo "2326"]
[Result "1-0"]
[Round "6"]
[TimeControl "180+2"]
[Date "2023.06.07"]
[WhiteClock "0:00:10"]
[BlackClock "0:00:06"]
[Board "69"]

1. e4 {[%clk 0:03:00]}  c5 {[%clk 0:03:00]} 2. Nf3 {[%clk 0:03:01]}  d6 {[%clk 0:03:00]} 3. d4 {[%clk 0:03:01]}  cxd4 {[%clk 0:03:01]} 4. Nxd4 {[%clk 0:03:02]}  Nf6 {[%clk 0:03:02]} 5. Nc3 {[%clk 0:03:03]}  a6 {[%clk 0:03:02]} 6. Bg5 {[%clk 0:03:03]}  e6 {[%clk 0:03:02]} 7. f4 {[%clk 0:03:02]}  Be7 {[%clk 0:03:03]} 8. Qf3 {[%clk 0:03:02]}  Qc7 {[%clk 0:03:03]} 9. O-O-O {[%clk 0:03:02]}  Nc6 {[%clk 0:03:03]} 10. g4 {[%clk 0:02:50]}  Bd7 {[%clk 0:02:36]} 11. Nb3 {[%clk 0:02:44]}  Rc8 {[%clk 0:02:31]} 12. Bxf6 {[%clk 0:02:40]}  Bxf6 {[%clk 0:02:30]} 13. g5 {[%clk 0:02:41]}  Bxc3 {[%clk 0:02:30]} 14. Qxc3 {[%clk 0:02:40]}  Nb4 {[%clk 0:02:23]} 15. Qxc7 {[%clk 0:02:35]}  Rxc7 {[%clk 0:02:22]} 16. c3 {[%clk 0:02:35]}  Ke7 {[%clk 0:02:19]} 17. Kb1 {[%clk 0:02:34]}  Nc6 {[%clk 0:02:17]} 18. Bg2 {[%clk 0:02:33]}  h6 {[%clk 0:02:14]} 19. h4 {[%clk 0:02:33]}  hxg5 {[%clk 0:02:15]} 20. hxg5 {[%clk 0:02:33]}  Rcc8 {[%clk 0:02:15]} 21. Kc2 {[%clk 0:02:27]}  g6 {[%clk 0:02:13]} 22. Kd3 {[%clk 0:02:26]}  e5 {[%clk 0:02:07]} 23. Ke3 {[%clk 0:02:19]}  Bg4 {[%clk 0:02:00]} 24. Rc1 {[%clk 0:02:10]}  Be6 {[%clk 0:01:53]} 25. Nd2 {[%clk 0:01:40]}  Na5 {[%clk 0:01:48]} 26. b3 {[%clk 0:01:36]}  Rxh1 {[%clk 0:01:46]} 27. Bxh1 {[%clk 0:01:37]}  Rh8 {[%clk 0:01:46]} 28. Bg2 {[%clk 0:01:35]}  Rh2 {[%clk 0:01:41]} 29. Rg1 {[%clk 0:01:34]}  Bg4 {[%clk 0:01:35]} 30. Nf1 {[%clk 0:01:15]}  Rh4 {[%clk 0:01:21]} 31. Nd2 {[%clk 0:01:10]}  b5 {[%clk 0:01:12]} 32. Bf1 {[%clk 0:01:08]}  Nc6 {[%clk 0:01:01]} 33. a4 {[%clk 0:01:02]}  b4 {[%clk 0:00:48]} 34. cxb4 {[%clk 0:00:54]}  Nxb4 {[%clk 0:00:45]} 35. fxe5 {[%clk 0:00:51]}  dxe5 {[%clk 0:00:44]} 36. Nc4 {[%clk 0:00:51]}  Ke6 {[%clk 0:00:41]} 37. Rxg4 {[%clk 0:00:45]}  Rh1 {[%clk 0:00:29]} 38. Kf2 {[%clk 0:00:43]}  Nc2 {[%clk 0:00:24]} 39. Rg1 {[%clk 0:00:36]}  Rh4 {[%clk 0:00:20]} 40. Bd3 {[%clk 0:00:22]}  Nb4 {[%clk 0:00:19]} 41. Bb1 {[%clk 0:00:21]}  Rh3 {[%clk 0:00:17]} 42. Ne3 {[%clk 0:00:21]}  Rh2+ {[%clk 0:00:15]} 43. Rg2 {[%clk 0:00:21]}  Rh1 {[%clk 0:00:15]} 44. Rg1 {[%clk 0:00:20]}  Rh2+ {[%clk 0:00:16]} 45. Rg2 {[%clk 0:00:19]}  Rh1 {[%clk 0:00:16]} 46. Nf1 {[%clk 0:00:20]}  Nc6 {[%clk 0:00:14]} 47. Bd3 {[%clk 0:00:19]}  a5 {[%clk 0:00:13]} 48. Bc4+ {[%clk 0:00:19]}  Ke7 {[%clk 0:00:12]} 49. Ke3 {[%clk 0:00:16]}  Nd4 {[%clk 0:00:12]} 50. Rf2 {[%clk 0:00:15]}  Rh3+ {[%clk 0:00:11]} 51. Kd2 {[%clk 0:00:15]}  Nxb3+ {[%clk 0:00:11]} 52. Bxb3 {[%clk 0:00:13]}  Rxb3 {[%clk 0:00:11]} 53. Ne3 {[%clk 0:00:14]}  Rb2+ {[%clk 0:00:07]} 54. Ke1 {[%clk 0:00:13]}  Ke6 {[%clk 0:00:06]} 55. Rxb2 {[%clk 0:00:10]} 1-0


[Site "https://www.chess.com"]

[Event "Titled Tuesday Blitz June 6 Late 2023"]
[White "Kokoszczynski, Jan"]
[Black "Arnaudov, G. Petar"]
[WhiteFideId "1174460"]
[BlackFideId "2907127"]
[WhiteElo "2139"]
[BlackElo "2430"]
[Result "0-1"]
[Round "6"]
[TimeControl "180+2"]
[Date "2023.06.07"]
[WhiteClock "0:00:08"]
[BlackClock "0:00:47"]
[Board "73"]

1. d4 {[%clk 0:03:00]}  Nf6 {[%clk 0:02:57]} 2. c4 {[%clk 0:03:00]}  Nc6 {[%clk 0:02:57]} 3. Nf3 {[%clk 0:03:00]}  e6 {[%clk 0:02:57]} 4. g3 {[%clk 0:02:56]}  Bb4+ {[%clk 0:02:56]} 5. Bd2 {[%clk 0:02:56]}  Qe7 {[%clk 0:02:55]} 6. Bg2 {[%clk 0:02:52]}  Bxd2+ {[%clk 0:02:54]} 7. Qxd2 {[%clk 0:02:52]}  Ne4 {[%clk 0:02:53]} 8. Qc2 {[%clk 0:02:52]}  Qb4+ {[%clk 0:02:52]} 9. Kf1 {[%clk 0:02:53]}  d5 {[%clk 0:02:45]} 10. cxd5 {[%clk 0:02:48]}  exd5 {[%clk 0:02:46]} 11. Nc3 {[%clk 0:02:45]}  Nxc3 {[%clk 0:02:45]} 12. Qxc3 {[%clk 0:02:42]}  Qe7 {[%clk 0:02:40]} 13. Rc1 {[%clk 0:02:24]}  O-O {[%clk 0:02:39]} 14. e3 {[%clk 0:01:57]}  Re8 {[%clk 0:02:32]} 15. Nd2 {[%clk 0:01:26]}  Qd8 {[%clk 0:02:23]} 16. Nb3 {[%clk 0:01:16]}  a5 {[%clk 0:02:22]} 17. Kg1 {[%clk 0:01:12]}  a4 {[%clk 0:02:20]} 18. Nc5 {[%clk 0:01:11]}  Qd6 {[%clk 0:02:09]} 19. h3 {[%clk 0:01:05]}  h5 {[%clk 0:02:07]} 20. h4 {[%clk 0:01:01]}  a3 {[%clk 0:01:57]} 21. b3 {[%clk 0:00:55]}  b6 {[%clk 0:01:57]} 22. Nd3 {[%clk 0:00:55]}  Ba6 {[%clk 0:01:44]} 23. Qxc6 {[%clk 0:00:50]}  Qxc6 {[%clk 0:01:39]} 24. Rxc6 {[%clk 0:00:51]}  Bxd3 {[%clk 0:01:39]} 25. Kh2 {[%clk 0:00:46]}  Be4 {[%clk 0:01:20]} 26. Bxe4 {[%clk 0:00:45]}  dxe4 {[%clk 0:01:20]} 27. Rxc7 {[%clk 0:00:45]}  Rac8 {[%clk 0:01:15]} 28. Rhc1 {[%clk 0:00:46]}  Rxc7 {[%clk 0:01:15]} 29. Rxc7 {[%clk 0:00:47]}  b5 {[%clk 0:01:16]} 30. Kg2 {[%clk 0:00:44]}  g6 {[%clk 0:01:12]} 31. b4 {[%clk 0:00:35]}  Kg7 {[%clk 0:01:02]} 32. Rc5 {[%clk 0:00:34]}  Rb8 {[%clk 0:01:01]} 33. Kf1 {[%clk 0:00:35]}  Kf6 {[%clk 0:01:01]} 34. Ke2 {[%clk 0:00:35]}  Kg7 {[%clk 0:00:58]} 35. Kd2 {[%clk 0:00:36]}  f5 {[%clk 0:00:59]} 36. Kc3 {[%clk 0:00:35]}  Kf6 {[%clk 0:00:59]} 37. Kb3 {[%clk 0:00:36]}  g5 {[%clk 0:00:59]} 38. hxg5+ {[%clk 0:00:29]}  Kxg5 {[%clk 0:00:59]} 39. Kxa3 {[%clk 0:00:29]}  Kg4 {[%clk 0:00:59]} 40. Kb3 {[%clk 0:00:28]}  Rf8 {[%clk 0:00:58]} 41. Rxb5 {[%clk 0:00:25]}  Kf3 {[%clk 0:00:58]} 42. a4 {[%clk 0:00:24]}  Kxf2 {[%clk 0:00:57]} 43. a5 {[%clk 0:00:24]}  Kxg3 {[%clk 0:00:50]} 44. a6 {[%clk 0:00:23]}  h4 {[%clk 0:00:50]} 45. a7 {[%clk 0:00:12]}  Ra8 {[%clk 0:00:49]} 46. Rb7 {[%clk 0:00:12]}  h3 {[%clk 0:00:49]} 47. Rh7 {[%clk 0:00:13]}  h2 {[%clk 0:00:48]} 48. b5 {[%clk 0:00:13]}  Rxa7 {[%clk 0:00:48]} 49. Rxa7 {[%clk 0:00:08]}  h1=Q {[%clk 0:00:48]} 50. Kc4 {[%clk 0:00:09]}  Qc1+ {[%clk 0:00:47]} 51. Kd5 {[%clk 0:00:08]}  Qxe3 {[%clk 0:00:47]} 52. b6 {[%clk 0:00:08]}  Qb3+ {[%clk 0:00:47]} 53. Kc6 {[%clk 0:00:09]}  Qc4+ {[%clk 0:00:48]} 54. Kb7 {[%clk 0:00:08]}  Qxd4 {[%clk 0:00:47]} 0-1


[Site "https://www.chess.com"]